Workbook

Sheet Havi költségvetés összegzése
B1: CÉGNÉV
B2: HAVI KÖLTSÉGVETÉS | E2: Dátum
B4: KÖLTSÉGVETÉS ÖSSZESEN | C4: BECSÜLT | D4: TÉNYLEGES | E4: KÜLÖNBSÉG
B5: Bevétel | C5: =Bevétel[[#Totals],[BECSÜLT]] -> 63,300.00 | D5: =Bevétel[[#Totals],[TÉNYLEGES]] -> 57,450.00 | E5: =Összesítés[[#This Row],[TÉNYLEGES]]-Összesítés[[#This Row],[BECSÜLT]] -> -5,850.00
B6: Költség | C6: =MűködésiKöltség[[#Totals],[BECSÜLT]]+Bérköltség[[#Totals],[BECSÜLT]] -> 54,500.00 | D6: =MűködésiKöltség[[#Totals],[TÉNYLEGES]]+Bérköltség[[#Totals],[TÉNYLEGES]] -> 49,630.00 | E6: =Összesítés[[#This Row],[BECSÜLT]]-Összesítés[[#This Row],[TÉNYLEGES]] -> 4,870.00
B7: Egyenleg (bevétel mínusz költség) | C7: =C5-C6 -> 8,800.00 | D7: =D5-D6 -> 7,820.00 | E7: =Összesítés[[#Totals],[TÉNYLEGES]]-Összesítés[[#Totals],[BECSÜLT]] -> -980.00
B10: MELYIK AZ 5 LEGNAGYOBB TÉTEL A MŰKÖDÉSI KÖLTSÉGEIM KÖZÜL?
B11: KÖLTSÉG | C11: ÖSSZEG | D11: KÖLTSÉGEK %-A | E11: 15%-OS CSÖKKENTÉS
B12: =INDEX(MűködésiKöltség[],MATCH(_5LegnagyobbKöltség[[#This Row],[ÖSSZEG]],MűködésiKöltség[5 LEGNAGYOBB ÖSSZEG],0),1) -> Karbantartás és javítások | C12: =LARGE(MűködésiKöltség[5 LEGNAGYOBB ÖSSZEG],1) -> 4,600.00 | D12: =_5LegnagyobbKöltség[[#This Row],[ÖSSZEG]]/$D$6 -> 9.3% | E12: =_5LegnagyobbKöltség[[#This Row],[ÖSSZEG]]*0.15 -> 690.00
B13: =INDEX(MűködésiKöltség[],MATCH(_5LegnagyobbKöltség[[#This Row],[ÖSSZEG]],MűködésiKöltség[5 LEGNAGYOBB ÖSSZEG],0),1) -> Kellékek | C13: =LARGE(MűködésiKöltség[5 LEGNAGYOBB ÖSSZEG],2) -> 4,500.00 | D13: =_5LegnagyobbKöltség[[#This Row],[ÖSSZEG]]/$D$6 -> 9.1% | E13: =_5LegnagyobbKöltség[[#This Row],[ÖSSZEG]]*0.15 -> 675.00
B14: =INDEX(MűködésiKöltség[],MATCH(_5LegnagyobbKöltség[[#This Row],[ÖSSZEG]],MűködésiKöltség[5 LEGNAGYOBB ÖSSZEG],0),1) -> Bérlet vagy jelzálog | C14: =LARGE(MűködésiKöltség[5 LEGNAGYOBB ÖSSZEG],3) -> 4,500.00 | D14: =_5LegnagyobbKöltség[[#This Row],[ÖSSZEG]]/$D$6 -> 9.1% | E14: =_5LegnagyobbKöltség[[#This Row],[ÖSSZEG]]*0.15 -> 675.00
B15: =INDEX(MűködésiKöltség[],MATCH(_5LegnagyobbKöltség[[#This Row],[ÖSSZEG]],MűködésiKöltség[5 LEGNAGYOBB ÖSSZEG],0),1) -> Adók | C15: =LARGE(MűködésiKöltség[5 LEGNAGYOBB ÖSSZEG],4) -> 3,200.00 | D15: =_5LegnagyobbKöltség[[#This Row],[ÖSSZEG]]/$D$6 -> 6.4% | E15: =_5LegnagyobbKöltség[[#This Row],[ÖSSZEG]]*0.15 -> 480.00
B16: =INDEX(MűködésiKöltség[],MATCH(_5LegnagyobbKöltség[[#This Row],[ÖSSZEG]],MűködésiKöltség[5 LEGNAGYOBB ÖSSZEG],0),1) -> Reklám | C16: =LARGE(MűködésiKöltség[5 LEGNAGYOBB ÖSSZEG],5) -> 2,500.00 | D16: =_5LegnagyobbKöltség[[#This Row],[ÖSSZEG]]/$D$6 -> 5.0% | E16: =_5LegnagyobbKöltség[[#This Row],[ÖSSZEG]]*0.15 -> 375.00
B17: Összesen | C17: =SUBTOTAL(109,_5LegnagyobbKöltség[ÖSSZEG]) -> 19,300.00 | D17: =SUBTOTAL(109,_5LegnagyobbKöltség[KÖLTSÉGEK %-A]) -> 38.9% | E17: =SUBTOTAL(109,_5LegnagyobbKöltség[15%-OS CSÖKKENTÉS]) -> 2,895.00

Sheet Bevétel
B1: =CÉGNÉV -> CÉGNÉV
B2: =KÖLTSÉGVETÉS_Címe -> HAVI KÖLTSÉGVETÉS
B4: BEVÉTEL | C4: BECSÜLT | D4: TÉNYLEGES | E4: 5 LEGNAGYOBB ÖSSZEG | F4: KÜLÖNBSÉG
B5: Nettó árbevétel | C5: 60,000.00 | D5: 54,000.00 | E5: =Bevétel[[#This Row],[TÉNYLEGES]]+(10^-6)*ROW(Bevétel[[#This Row],[TÉNYLEGES]]) -> 54,000.00 | F5: =Bevétel[[#This Row],[TÉNYLEGES]]-Bevétel[[#This Row],[BECSÜLT]] -> -6,000.00
B6: Kamatbevétel | C6: 3,000.00 | D6: 3,000.00 | E6: =Bevétel[[#This Row],[TÉNYLEGES]]+(10^-6)*ROW(Bevétel[[#This Row],[TÉNYLEGES]]) -> 3,000.00 | F6: =Bevétel[[#This Row],[TÉNYLEGES]]-Bevétel[[#This Row],[BECSÜLT]] -> 0.00
B7: Eszközök értékesítése (nyereség/veszteség) | C7: 300.00 | D7: 450.00 | E7: =Bevétel[[#This Row],[TÉNYLEGES]]+(10^-6)*ROW(Bevétel[[#This Row],[TÉNYLEGES]]) -> 450.00 | F7: =Bevétel[[#This Row],[TÉNYLEGES]]-Bevétel[[#This Row],[BECSÜLT]] -> 150.00
B8: Összes bevétel | C8: =SUBTOTAL(109,Bevétel[BECSÜLT]) -> 63,300.00 | D8: =SUBTOTAL(109,Bevétel[TÉNYLEGES]) -> 57,450.00 | F8: =SUBTOTAL(109,Bevétel[KÜLÖNBSÉG]) -> -5,850.00

Sheet Bérköltség
B1: =CÉGNÉV -> CÉGNÉV
B2: =KÖLTSÉGVETÉS_Címe -> HAVI KÖLTSÉGVETÉS
B4: BÉRKÖLTSÉG | C4: BECSÜLT | D4: TÉNYLEGES | E4: 5 LEGNAGYOBB ÖSSZEG | F4: KÜLÖNBSÉG
B5: Bérek | C5: 9,500.00 | D5: 9,600.00 | E5: =Bérköltség[[#This Row],[TÉNYLEGES]]+(10^-6)*ROW(Bérköltség[[#This Row],[TÉNYLEGES]]) -> 9,600.00 | F5: =Bérköltség[[#This Row],[BECSÜLT]]-Bérköltség[[#This Row],[TÉNYLEGES]] -> -100.00
B6: Alkalmazotti juttatások | C6: 4,000.00 | D6: 0.00 | E6: =Bérköltség[[#This Row],[TÉNYLEGES]]+(10^-6)*ROW(Bérköltség[[#This Row],[TÉNYLEGES]]) -> 0.00 | F6: =Bérköltség[[#This Row],[BECSÜLT]]-Bérköltség[[#This Row],[TÉNYLEGES]] -> 4,000.00
B7: Jutalék | C7: 5,000.00 | D7: 4,500.00 | E7: =Bérköltség[[#This Row],[TÉNYLEGES]]+(10^-6)*ROW(Bérköltség[[#This Row],[TÉNYLEGES]]) -> 4,500.00 | F7: =Bérköltség[[#This Row],[BECSÜLT]]-Bérköltség[[#This Row],[TÉNYLEGES]] -> 500.00
B8: Teljes bérköltség | C8: =SUBTOTAL(109,Bérköltség[BECSÜLT]) -> 18,500.00 | D8: =SUBTOTAL(109,Bérköltség[TÉNYLEGES]) -> 14,100.00 | F8: =SUBTOTAL(109,Bérköltség[KÜLÖNBSÉG]) -> 4,400.00

Sheet Működési költség
B1: =CÉGNÉV -> CÉGNÉV
B2: =KÖLTSÉGVETÉS_Címe -> HAVI KÖLTSÉGVETÉS
B4: MŰKÖDÉSI KÖLTSÉG | C4: BECSÜLT | D4: TÉNYLEGES | E4: 5 LEGNAGYOBB ÖSSZEG | F4: KÜLÖNBSÉG
B5: Reklám | C5: 3,000.00 | D5: 2,500.00 | E5: =MűködésiKöltség[[#This Row],[TÉNYLEGES]]+(10^-6)*ROW(MűködésiKöltség[[#This Row],[TÉNYLEGES]]) -> 2,500.00 | F5: =MűködésiKöltség[[#This Row],[BECSÜLT]]-MűködésiKöltség[[#This Row],[TÉNYLEGES]] -> 500.00
B6: Rossz kintlévőségek | C6: 2,000.00 | D6: 2,000.00 | E6: =MűködésiKöltség[[#This Row],[TÉNYLEGES]]+(10^-6)*ROW(MűködésiKöltség[[#This Row],[TÉNYLEGES]]) -> 2,000.00 | F6: =MűködésiKöltség[[#This Row],[BECSÜLT]]-MűködésiKöltség[[#This Row],[TÉNYLEGES]] -> 0.00
B7: Fizetési engedmények | C7: 1,500.00 | D7: 2,175.00 | E7: =MűködésiKöltség[[#This Row],[TÉNYLEGES]]+(10^-6)*ROW(MűködésiKöltség[[#This Row],[TÉNYLEGES]]) -> 2,175.00 | F7: =MűködésiKöltség[[#This Row],[BECSÜLT]]-MűködésiKöltség[[#This Row],[TÉNYLEGES]] -> -675.00
B8: Kiszállítási költség | C8: 2,000.00 | D8: 1,500.00 | E8: =MűködésiKöltség[[#This Row],[TÉNYLEGES]]+(10^-6)*ROW(MűködésiKöltség[[#This Row],[TÉNYLEGES]]) -> 1,500.00 | F8: =MűködésiKöltség[[#This Row],[BECSÜLT]]-MűködésiKöltség[[#This Row],[TÉNYLEGES]] -> 500.00
B9: Értékcsökkenés | C9: 1,000.00 | D9: 1,000.00 | E9: =MűködésiKöltség[[#This Row],[TÉNYLEGES]]+(10^-6)*ROW(MűködésiKöltség[[#This Row],[TÉNYLEGES]]) -> 1,000.00 | F9: =MűködésiKöltség[[#This Row],[BECSÜLT]]-MűködésiKöltség[[#This Row],[TÉNYLEGES]] -> 0.00
B10: Tagdíjak és előfizetések | C10: 500.00 | D10: 525.00 | E10: =MűködésiKöltség[[#This Row],[TÉNYLEGES]]+(10^-6)*ROW(MűködésiKöltség[[#This Row],[TÉNYLEGES]]) -> 525.00 | F10: =MűködésiKöltség[[#This Row],[BECSÜLT]]-MűködésiKöltség[[#This Row],[TÉNYLEGES]] -> -25.00
B11: Biztosítás | C11: 1,300.00 | D11: 1,275.00 | E11: =MűködésiKöltség[[#This Row],[TÉNYLEGES]]+(10^-6)*ROW(MűködésiKöltség[[#This Row],[TÉNYLEGES]]) -> 1,275.00 | F11: =MűködésiKöltség[[#This Row],[BECSÜLT]]-MűködésiKöltség[[#This Row],[TÉNYLEGES]] -> 25.00
B12: Kamat | C12: 2,000.00 | D12: 2,200.00 | E12: =MűködésiKöltség[[#This Row],[TÉNYLEGES]]+(10^-6)*ROW(MűködésiKöltség[[#This Row],[TÉNYLEGES]]) -> 2,200.00 | F12: =MűködésiKöltség[[#This Row],[BECSÜLT]]-MűködésiKöltség[[#This Row],[TÉNYLEGES]] -> -200.00
B13: Jogi és könyvvizsgálati költségek | C13: 1,000.00 | D13: 800.00 | E13: =MűködésiKöltség[[#This Row],[TÉNYLEGES]]+(10^-6)*ROW(MűködésiKöltség[[#This Row],[TÉNYLEGES]]) -> 800.00 | F13: =MűködésiKöltség[[#This Row],[BECSÜLT]]-MűködésiKöltség[[#This Row],[TÉNYLEGES]] -> 200.00
B14: Karbantartás és javítások | C14: 4,500.00 | D14: 4,600.00 | E14: =MűködésiKöltség[[#This Row],[TÉNYLEGES]]+(10^-6)*ROW(MűködésiKöltség[[#This Row],[TÉNYLEGES]]) -> 4,600.00 | F14: =MűködésiKöltség[[#This Row],[BECSÜLT]]-MűködésiKöltség[[#This Row],[TÉNYLEGES]] -> -100.00
B15: Irodai kellékek | C15: 800.00 | D15: 750.00 | E15: =MűködésiKöltség[[#This Row],[TÉNYLEGES]]+(10^-6)*ROW(MűködésiKöltség[[#This Row],[TÉNYLEGES]]) -> 750.00 | F15: =MűködésiKöltség[[#This Row],[BECSÜLT]]-MűködésiKöltség[[#This Row],[TÉNYLEGES]] -> 50.00
B16: Postaköltség | C16: 400.00 | D16: 350.00 | E16: =MűködésiKöltség[[#This Row],[TÉNYLEGES]]+(10^-6)*ROW(MűködésiKöltség[[#This Row],[TÉNYLEGES]]) -> 350.00 | F16: =MűködésiKöltség[[#This Row],[BECSÜLT]]-MűködésiKöltség[[#This Row],[TÉNYLEGES]] -> 50.00
B17: Bérlet vagy jelzálog | C17: 4,100.00 | D17: 4,500.00 | E17: =MűködésiKöltség[[#This Row],[TÉNYLEGES]]+(10^-6)*ROW(MűködésiKöltség[[#This Row],[TÉNYLEGES]]) -> 4,500.00 | F17: =MűködésiKöltség[[#This Row],[BECSÜLT]]-MűködésiKöltség[[#This Row],[TÉNYLEGES]] -> -400.00
B18: Értékesítés költsége | C18: 350.00 | D18: 400.00 | E18: =MűködésiKöltség[[#This Row],[TÉNYLEGES]]+(10^-6)*ROW(MűködésiKöltség[[#This Row],[TÉNYLEGES]]) -> 400.00 | F18: =MűködésiKöltség[[#This Row],[BECSÜLT]]-MűködésiKöltség[[#This Row],[TÉNYLEGES]] -> -50.00
B19: Szállítás és tárolás | C19: 900.00 | D19: 840.00 | E19: =MűködésiKöltség[[#This Row],[TÉNYLEGES]]+(10^-6)*ROW(MűködésiKöltség[[#This Row],[TÉNYLEGES]]) -> 840.00 | F19: =MűködésiKöltség[[#This Row],[BECSÜLT]]-MűködésiKöltség[[#This Row],[TÉNYLEGES]] -> 60.00
B20: Kellékek | C20: 5,000.00 | D20: 4,500.00 | E20: =MűködésiKöltség[[#This Row],[TÉNYLEGES]]+(10^-6)*ROW(MűködésiKöltség[[#This Row],[TÉNYLEGES]]) -> 4,500.00 | F20: =MűködésiKöltség[[#This Row],[BECSÜLT]]-MűködésiKöltség[[#This Row],[TÉNYLEGES]] -> 500.00
B21: Adók | C21: 3,000.00 | D21: 3,200.00 | E21: =MűködésiKöltség[[#This Row],[TÉNYLEGES]]+(10^-6)*ROW(MűködésiKöltség[[#This Row],[TÉNYLEGES]]) -> 3,200.00 | F21: =MűködésiKöltség[[#This Row],[BECSÜLT]]-MűködésiKöltség[[#This Row],[TÉNYLEGES]] -> -200.00
B22: Telefon | C22: 250.00 | D22: 280.00 | E22: =MűködésiKöltség[[#This Row],[TÉNYLEGES]]+(10^-6)*ROW(MűködésiKöltség[[#This Row],[TÉNYLEGES]]) -> 280.00 | F22: =MűködésiKöltség[[#This Row],[BECSÜLT]]-MűködésiKöltség[[#This Row],[TÉNYLEGES]] -> -30.00
B23: Közműdíj | C23: 1,400.00 | D23: 1,385.00 | E23: =MűködésiKöltség[[#This Row],[TÉNYLEGES]]+(10^-6)*ROW(MűködésiKöltség[[#This Row],[TÉNYLEGES]]) -> 1,385.00 | F23: =MűködésiKöltség[[#This Row],[BECSÜLT]]-MűködésiKöltség[[#This Row],[TÉNYLEGES]] -> 15.00
B24: Egyéb | C24: 1,000.00 | D24: 750.00 | E24: =MűködésiKöltség[[#This Row],[TÉNYLEGES]]+(10^-6)*ROW(MűködésiKöltség[[#This Row],[TÉNYLEGES]]) -> 750.00 | F24: =MűködésiKöltség[[#This Row],[BECSÜLT]]-MűködésiKöltség[[#This Row],[TÉNYLEGES]] -> 250.00
B25: Összes működési költség | C25: =SUBTOTAL(109,MűködésiKöltség[BECSÜLT]) -> 36,000.00 | D25: =SUBTOTAL(109,MűködésiKöltség[TÉNYLEGES]) -> 35,530.00 | F25: =SUBTOTAL(109,MűködésiKöltség[KÜLÖNBSÉG]) -> 470.00
